Cogmind - Beta 13 @@@ ROGUE MODE // 2024.04.07 @ 22:07:11 Player: Patryk Z Result: Destroyed by L-31 Rogue with Katana Performance ------------- Evolutions (2) 1000 Regions Visited (3) 600 Robots Destroyed (35) 175 Value Destroyed (931) 931 Prototype IDs (1) 20 Alien Tech Used (0) 0 Bonus (0) 0 TOTAL SCORE: 2726 Bonus ------- None Cogmind --------- Core Integrity 0/550 Matter 300/300 Energy 100/100 System Corruption 5% Temperature Cool (0) Movement Core (200) Ox3 Location -8/Materials Parts ------- > --- POWER (1) -------- (None) > --- PROPULSION (4) --- (None) > --- UTILITY (3) ------ Medium Storage Unit > --- WEAPON (3) ------- (None) > --- INVENTORY (10) --- Improved Sensor Array Arc Projector Peak State ------------ > --- POWER ------------ Improved Ion Engine > --- PROPULSION ------- Light Treads Light Treads Light Treads Light Treads > --- UTILITY ---------- Medium Storage Unit Improved Propulsion Shielding Light Armor Plating > --- WEAPON ----------- Arc Projector Arc Projector Arc Projector > --- INVENTORY -------- Ion Engine Cooling System Improved Sensor Array Improved Propulsion Shielding Improved Propulsion Shielding Arc Projector Arc Projector Arc Projector Arc Projector Plasma Cutter [Rating: 26] Favorites ----------- Power Improved Ion Engine Engine Improved Ion Engine Propulsion Light Treads Treads Light Treads Utility Medium Storage Unit Device Heat Sink Storage Medium Storage Unit Protection Light Armor Plating Weapon Heavy EM Pulse Gun Energy Gun Heavy EM Pulse Gun Energy Cannon Beam Cannon Special Weapon Plasma Cutter Special Melee Weapon Datajack Build | -11 -10 -9 -8 ------- Run | Yrd Mat Mat Mat Slots Evolved 4 | . . 2 2 Power . | . . . . Propulsion 2 | . . 2 . Utility 1 | . . . 1 Weapon 1 | . . . 1 Parts Attached 57 | 5 10 19 23 Power 6 | . 2 2 2 Engine 6 | . 2 2 2 Core . | . . . . Reactor . | . . . . Propulsion 8 | 2 2 4 . Treads 8 | 2 2 4 . Leg . | . . . . Wheel . | . . . . Hover . | . . . . Flight . | . . . . Utility 11 | 1 1 3 6 Device 4 | . 1 1 2 Storage 2 | 1 . 1 . Processor . | . . . . Hackware . | . . . . Protection 5 | . . 1 4 Artifact . | . . . . Weapon 32 | 2 5 10 15 Energy Gun 18 | 2 2 6 8 Energy Cannon 6 | . . 2 4 Ballistic Gun . | . . . . Ballistic Cannon . | . . . . Launcher . | . . . . Special Weapon 5 | . . 2 3 Impact Weapon . | . . . . Slashing Weapon . | . . . . Piercing Weapon . | . . . . Special Melee Weapon 3 | . 3 . . Unidentified Prototypes 1 | . . 1 . Parts Lost 16 | . . . 16 Power 2 | . . . 2 Propulsion 3 | . . . 3 Utility 4 | . . . 4 Weapon 7 | . . . 7 Highest Loss Streak 15 | . . . 15 To Critical Strikes . | . . . . Average Slot Usage (%) 89 | . 81 97 87 Engine 7 | . 4 10 7 Treads 34 | . 28 43 32 Device 5 | . 5 9 . Storage 11 | . 14 10 9 Protection 5 | . . 1 14 Energy Gun 16 | . 14 16 19 Energy Cannon 1 | . . 3 1 Special Melee Weapon 4 | . 13 . . Naked Turns . | . . . . Heaviest Build 34 | 9 14 26 34 Greatest Support 80 | 40 40 80 80 Greatest Overweight (x) 3 | . . . 3 Average Overweight (x) . | . . . . Largest Inventory Capacity 10 | 8 8 10 10 Average Capacity 9 | 7 8 9 10 Most Carried 10 | 4 6 10 10 Average Carried 6 | 1 4 8 8 Final Capacity 10 | 8 8 10 10 Final Carried 7 | 2 6 7 2 Class Distribution -------------------- 72% | Mutant 26% | Scavenger-Tank Dominant Class ---------------- Mutant | -10/Materials Mutant | -9/Materials Scavenger-Tank | -8/Materials Resources | -11 -10 -9 -8 ----------- Run | Yrd Mat Mat Mat Matter Collected 772 | 194 156 232 190 Remotely . | . . . . Salvage Created 1242 | . 178 556 508 Parts 69 | . 8 31 30 Haulers Intercepted . | . . . . Recyclers Shooed 1 | . . 1 . Parts Field Recycled . | . . . . Retrieved Matter . | . . . . Parts Self-Destructed . | . . . . Prevented . | . . . . Kills | -11 -10 -9 -8 ------- Run | Yrd Mat Mat Mat Combat Hostiles Destroyed 27 | . 4 11 12 Guns 18 | . 4 7 7 Cannons 1 | . . 1 . AOE 7 | . . 3 4 Classes Destroyed 7 | . 1 5 1 Worker 1 | . . 1 . Builder 2 | . . . 2 Recycler 1 | . . 1 . Watcher 4 | . . 2 2 Swarmer 10 | . . 3 7 Grunt 12 | . 4 5 3 Sentry 5 | . . 3 2 Best Kill Streak 4 | . 3 3 4 Combat Bots Only 3 | . 3 3 3 Max Kills in Single Turn 2 | . 1 2 2 Gunslinging 1 | . . . 1 Exploded 2 | . . 2 2 Melee . | . . . . Uniques/NPCs Destroyed . | . . . . Combat | -11 -10 -9 -8 -------- Run | Yrd Mat Mat Mat Hostile Shots Fired 248 | . 53 41 154 Missed 49 | . 9 12 28 Damage Taken 2937 | . 522 363 2052 Core 702 | . 78 58 566 Absorbed by Shields . | . . . . Redirected to Shielding 277 | . . . 277 Core Remaining (%) 84 | 100 68 85 . Volleys Fired 106 | . 36 31 39 Largest 3 | . 2 2 3 Hottest 165 | . 90 110 165 Shots Fired 187 | . 44 63 80 Gun 174 | . 44 55 75 Cannon 13 | . . 8 5 Launcher . | . . . . Special . | . . . . Kinetic . | . . . . Thermal 49 | . 36 13 . Explosive . | . . . . Electromagnetic 138 | . 8 50 80 Robot Hit Streak 15 | . 15 7 10 Robot Miss Streak 4 | . 1 4 3 Penetration Max . | . . . . Secondary Targets 2 | . . . 2 Max Gunslinging Chain 2 | . . . 2 Shots Hit Robots 140 | . 53 36 51 Core Hits 54 | . 10 19 25 Critical Kills . | . . . . Critical Parts Destroyed . | . . . . Critical Strikes 5 | . 1 2 2 Burn 1 | . 1 . . Corrupt 4 | . . 2 2 Melee Attacks 13 | . 13 . . Impact . | . . . . Slashing . | . . . . Piercing . | . . . . Sneak Attacks 10 | . 10 . . Combat Hostiles . | . . . . Follow-up Attacks . | . . . . Damage Inflicted 2275 | . 483 774 1018 Guns 1549 | . 483 436 630 Cannons 154 | . . 87 67 Explosions 572 | . . 251 321 Melee . | . . . . Ramming . | . . . . Kinetic . | . . . . Thermal 1097 | . 400 376 321 Explosive . | . . . . Electromagnetic 1178 | . 83 398 697 Impact . | . . . . Slashing . | . . . . Piercing . | . . . . Highest Corruption 5 | . . 4 5 Average Corruption 4 | . . 4 5 Corruption Purged . | . . . . Corruption Blocked . | . . . . Effects 16 | . . 16 . Message Errors 1 | . . 1 . Matter Fused 5 | . . 5 . Heat Flow Errors 1 | . . 1 . Energy Discharges 5 | . . 5 . Data Loss (major) 1 | . . 1 . Misfires 3 | . . 3 . Overload Shots . | . . . . Overflow Damage 21 | . . 4 17 Projectiles . | . . . . Explosions 21 | . . 4 17 Melee . | . . . . Knockbacks . | . . . . Impact . | . . . . Kinetic . | . . . . Secondary . | . . . . Self-Inflicted Damage 96 | . . 28 68 Shots 3 | . . 1 2 Rammed . | . . . . Targets Rammed . | . . . . Kicked . | . . . . Crushed . | . . . . Highest Temperature 463 | . 197 174 463 Average Temperature 114 | . 61 56 172 Received Heat Transfer 1203 | . 288 114 801 Effects 12 | . . . 12 Shutdowns 2 | . . . 2 Energy Bleed 2 | . . . 2 Interference 7 | . . . 7 Damage (minor) 1 | . . . 1 Siege Activations . | . . . . Robots Corrupted 1 | . . . 1 Combat Hostiles 1 | . . . 1 Parts Fried 3 | . . . 3 Impact Corruptions . | . . . . Robots Melted . | . . . . Combat Hostiles . | . . . . Parts Melted 2 | . 1 1 . Heat Transferred 2404 | . 1258 646 500 Parts Sabotaged . | . . . . Parts Stolen . | . . . . Parts Stripped . | . . . . Power Chain Reactions 8 | . . 3 5 Alert | -11 -10 -9 -8 ------- Run | Yrd Mat Mat Mat Peak Influence 328 | . 190 315 328 Initial 128 | . . 79 128 Average 144 | . 34 188 224 Maximum Alert Level 1 | . . 1 1 Low Security (%) 57 | 100 100 46 21 Level 1 42 | . . 53 78 Level 2 . | . . . . Level 3 . | . . . . Level 4 . | . . . . Level 5 . | . . . . High Security . | . . . . Max Security . | . . . . Squads Dispatched 7 | . 2 2 3 Investigation 4 | . 2 2 . Extermination . | . . . . Reinforcement 1 | . . . 1 Assault . | . . . . Garrison 2 | . . . 2 Intercept . | . . . . Searches Triggered . | . . . . Construction Impeded 1 | . . . 1 Haulers Reinforced . | . . . . Active Scanning Responses . | . . . . Cargo Convoy Interrupts . | . . . . Stealth | -11 -10 -9 -8 --------- Run | Yrd Mat Mat Mat Distress Signals 3 | . 1 . 2 Communications Jammed . | . . . . Distress Signals . | . . . . Times Spotted 52 | . 12 15 25 Peak Tracking Total 8 | . 5 3 8 Tactical Retreats 9 | . 5 . 4 Traps | -11 -10 -9 -8 ------- Run | Yrd Mat Mat Mat Traps Triggered . | . . . . Indirectly . | . . . . Trap Hack Attempts . | . . . . Triggered . | . . . . Disarmed . | . . . . Reprogrammed . | . . . . Reused . | . . . . Traps Extracted . | . . . . Installed . | . . . . Triggered 1 | . 1 . . Machines | -11 -10 -9 -8 ---------- Run | Yrd Mat Mat Mat Machines Disabled 6 | . 1 2 3 Max in Single Turn 2 | . 1 1 2 Machines Repaired . | . . . . Machines Dismantled 6 | . . 1 5 Machines Sabotaged . | . . . . Overloaded Fab Kills . | . . . . Hacking | -11 -10 -9 -8 --------- Run | Yrd Mat Mat Mat Machines Accessed 6 | . 2 4 . Terminals 4 | . 1 3 . Fabricators . | . . . . Repair Stations . | . . . . Recycling Units 1 | . 1 . . Scanalyzers 1 | . . 1 . Garrison Access . | . . . . Total Hacks 15 | . 5 10 . Successful 7 | . 2 5 . Failed 8 | . 3 5 . Catastrophic 4 | . 1 3 . Database Lockouts . | . . . . Manual 4 | . 1 3 . Terminals 8 | . 2 6 . Fabricators . | . . . . Repair Stations . | . . . . Recycling Units 3 | . 3 . . Scanalyzers 4 | . . 4 . Garrison Access . | . . . . Terminal Hacks 2 | . 1 1 . Alert Level 1 | . 1 . . Dispatch Records 1 | . . 1 . Fabricator Hacks . | . . . . Repair Station Hacks . | . . . . Recycling Unit Hacks 1 | . 1 . . Retrieve Matter 1 | . 1 . . Scanalyzer 4 | . . 4 . Insert Component 2 | . . 2 . Analyze 2 | . . 2 . Garrison Access Hacks . | . . . . Unauthorized Hacks . | . . . . Terminals . | . . . . Fabricators . | . . . . Repair Stations . | . . . . Recycling Units . | . . . . Scanalyzers . | . . . . Garrison Access . | . . . . Data Cores Recovered . | . . . . Used . | . . . . Hacking Detections 6 | . 2 4 . Full Trace Events 3 | . 2 1 . Feedback Events . | . . . . Feedback Blocked . | . . . . Robot Schematics Acquired . | . . . . Robots Built . | . . . . Authchips . | . . . . Time . | . . . . Total Robot Build Rating . | . . . . Part Schematics Acquired 2 | . . 2 . Parts Built . | . . . . Authchips . | . . . . Time . | . . . . Total Part Build Rating . | . . . . Parts Repaired . | . . . . Time . | . . . . Parts Recycled . | . . . . Recycled Matter . | . . . . Retrieved Matter . | . . . . Retrieved Components . | . . . . Parts Scanalyzed 2 | . . 2 . Part Schematics Acquired 2 | . . 2 . Parts Damaged . | . . . . Bothacking | -11 -10 -9 -8 ------------ Run | Yrd Mat Mat Mat Used RIF Installer . | . . . . Robots Hacked 5 | . 5 . . Non-combat 3 | . 3 . . Combat 2 | . 2 . . Robot Hacks Applied 12 | . 12 . . parse_system 7 | . 7 . . no_distress 5 | . 5 . . Relay Couplers Released . | . . . . Fabnet Peak Effective % . | . . . . Robots Rewired . | . . . . Allies Hacked . | . . . . Hacks Repelled . | . . . . Allies | -11 -10 -9 -8 -------- Run | Yrd Mat Mat Mat Total Allies . | . . . . Largest Group . | . . . . Highest-Rated Group . | . . . . Highest-Rated Ally . | . . . . Total Orders . | . . . . Ally Attacks . | . . . . Total Damage . | . . . . Kills . | . . . . Allies Corrupted . | . . . . Allies Melted . | . . . . Intel | -11 -10 -9 -8 ------- Run | Yrd Mat Mat Mat Robot Analysis Total . | . . . . Derelict Logs Recovered . | . . . . Drone Launches . | . . . . Drone Recoveries . | . . . . Exploration | -11 -10 -9 -8 ------------- Run | Yrd Mat Mat Mat Turns Passed 2091 | 65 676 657 693 Spaces Moved 862 | 37 288 285 252 Core 14 | 5 . . 9 Treads 848 | 32 288 285 243 Legs . | . . . . Wheels . | . . . . Hover . | . . . . Flight . | . . . . Fastest Speed 50 | 50 160 160 160 Average Speed 159 | 145 160 160 161 Slowest Speed 200 | 160 160 160 200 Overloaded Moves . | . . . . Propulsion Burnouts . | . . . . Robots Hopped . | . . . . Cave-ins Triggered . | . . . . Exploration Rate (%) 22 | 3 34 23 28 Regions Visited 3 Branch Regions . Pre-discovered Areas . | . . . . Known Exits Taken . | . . . . Unknown Exits Taken 3 | 1 1 1 . Scrap Searched . | . . . . Spaces Dug . | . . . . Terrain Destroyed 33 | . . 14 19 Melee . | . . . . Projectile . | . . . . AOE 33 | . . 14 19 Terrain Rammed . | . . . . Walls Destroyed . | . . . . Machines Disabled . | . . . . Actions | -11 -10 -9 -8 --------- Run | Yrd Mat Mat Mat Total 1330 | 48 456 404 422 Wait 163 | . 88 14 61 Move 859 | 36 287 284 252 Hop . | . . . . Pick Up 53 | 7 13 20 13 Fast Attach 1 | . . 1 . Attach 37 | 5 8 13 11 Detach 6 | . 2 3 1 Swap 19 | . 2 5 12 Drop 34 | . 7 18 9 Fire 106 | . 36 31 39 Melee 13 | . 13 . . Ram . | . . . . Kick . | . . . . Crush . | . . . . Escape Stasis . | . . . . Rewire . | . . . . Trap . | . . . . Miscellaneous 39 | . . 15 24 Route ------- -11/Scrapyard -10/Materials -9/Materials -8/Materials History --------- Turn | Location | Event 15 | -11/Scrapyard | Discovered new exit (range 16) 66 | -11/Scrapyard | Entered Materials 309 | -10/Materials | Build established: Mutant 718 | -10/Materials | Discovered new exit (range 16) 742 | -10/Materials | Entered another Materials area 742 | -9/Materials | Evolved 2 slots: Propulsion x2 1339 | -9/Materials | Discovered new exit (range 14) 1399 | -9/Materials | Entered another Materials area 1399 | -8/Materials | Evolved 2 slots: Utility x1, Weapon x1 1711 | -8/Materials | Build established: Scavenger-Tank 1936 | -8/Materials | Garrison activated, responded to threat 2023 | -8/Materials | Core integrity fell below 50% 2059 | -8/Materials | Lost 15 parts (2p2n4u7w) 2079 | -8/Materials | Core integrity fell below 20% 2092 | -8/Materials | Destroyed by L-31 Rogue with Katana Last Messages --------------- 01997_ K-01 Serf collects debris. 02002_ G-47 Trooper misfires. 02009_ Arc Projector destroyed. 02012_ Ion Engine destroyed. 02012_ K-01 Serf collects debris. 02016_ Imp. Propulsion Shielding destroyed. 02017_ Arc Projector destroyed. 02017_ Imp. Ion Engine destroyed. 02017_ System corrupted by crushing effect (+1). 02017_ System corrupted by crushing effect (+4). 02020_ Critical hit (Burn: +37). 02021_ Lgt. Treads severed. 02022_ Acquired 10 matter. 02026_ Lgt. Armor Plating destroyed. 02028_ Cooling System destroyed. 02041_ R-06 Scavenger collects Wheel. 02050_ G-47 Trooper IFF system glitched. 02050_ T-07 Excavator destroyed. 02054_ R-06 Scavenger collects Lgt. Ion Engine. 02074_ Lgt. Treads destroyed. Map ----- +----------------------------------------------------+ | ?????????????????????????????????????????????????? | | ?????????????????????????????????????????????????? | | ?????????????????????????????????????????????????? | | ?????????????????????????????????????????????????? | | ?????????????????????????????????????????????????? | | ?????????????????????????????????????????????????? | | ?????????????????????????????????????????????????? | | ?????????????????????????????????????????????????? | | ?????????????????????????????????????????????????? | | ?????????????????????????????????????????????????? | | ?????????????????????????????????????????????????? | | ?????????????????????????????????????????????????? | | ?????????????????????????????????????????????????? | | ?????????????????????????????????????????????????? | | ?????????????????????????????????????????????????? | | ?????????????????????????????????????????????????? | | ?????????????????????????????????????????????????? | | ???????????????########??????????????????????????? | | ???????????????# ] !!#??????????????????????????? | | ???????????????# |!!#??????????????????????????? | | ???????????????# /* #?????#######??????????????? | | ???????????##### ####### #??????????????? | | ???????????#! u #??????????????? | | ???????????# #??????????????? | | ???????????# ^ ll #???? ?????????? | | ???????????#^ === %#####@### #???? ?????????? | | ???????????# =^= |## ## ##???? ?????????? | | ???????????# ^=== ] "" ## #????? ?????????? | | ?????####### = [ T" ## #????? ?????????? | | ? % %% " ## #????? ?????????? | | ? " ## ## #????? ?????????? | | ? " ## ## ! #????# #????????? | | ??##+######+##### ##########!% #????# #????????? | | ????????????????# #????????# #????# #????????? | | ????????????????# #????????# #????# #????????? | | ????????????????# #????????# #????# #????????? | | ????????????????# #????????# %%#????# #???????? | | ????????????????# #????????# % #????# #########+ | | ????????????????# ########?# #????# %* | | ????????????????# ### ###### | | ????????????????# % | | ????????????????# ######## ####"######+ | | ?????????????#######+### #??????# ###%=[% | | ?????????????#] # #??????# ###! %"= | | ?????????????# # #??????# ^ ##!= %" "" | | ?????????????# "" "" # #??????# ###|!!# """ | | ?????????????# " " # #??????# #?#* # """ | | ?????????????# "" "" # #??????# #?# # | | ?????????????# " " " # #??????# #?# ###### | | ?????????????# "" # #??????# #?#####????? | +----------------------------------------------------+ Best States ------------- Heat Dissipation 53 Energy Generation 12 Energy Capacity 265 Matter Stores 300 Matter Capacity 300 Sight Range 16 Robot Scan Range 14 Terrain Scan Density 10 Armor Coverage 150 Propulsion Shielding 66 Evasion (%) 40 Recoil Reduction 4 Item Schematics ----------------- Hvy. EM Pulse Gun | -9/Materials | Scanalyzed Lgt. Treads | -9/Materials | Scanalyzed Robot Schematics ------------------ None Fabricated ------------ Nothing Alien Tech Used ----------------- None Achievements -------------- Power Corrupts Troublemaker Challenges ------------ None Game ------ Seed MetafiberWeaponsFlail Manual? 0 Play Time 00:50:59 Cumulative 5.6 hours Start 2024.04.07 @ 21:10:59 End 2024.04.07 @ 22:07:11 Sessions 1 Manual Loads 0 Difficulty Rogue Special Mode None Game No. 5 Rogue 5 Adventurer 0 Explorer 0 Win Type - Total 0 Types 0/0/0/0/0/0/0/0/0 Lore% 2 Gallery% 6 Achievement% 7 Wizard Run 0 Options --------- Layout 1 ASCII 0 Keyboard 0 Movement Mouse Keybinds 0 Fullscreen 2 Font 20/SmallcapsGlow Map View 32x21 Zoom Use 91% Tactical HUD 1 Map Filters NONE Filters NONE Steam 1 RUN: ffbec577-dff2-4b48-be95-465c57d083b5